[Event "*** Titled Tuesday Blitz"]
[Site "Chess.com"]
[Date "2018.08.07"]
[Round "1"]
[White "BasilSmash"]
[Black "fidetrainerNET"]
[Result "1-0"]
[WhiteElo "2438"]
[BlackElo "1919"]
[TimeControl "180+2"]
[EndTime "13:03:52 PDT"]
[Termination "BasilSmash won by resignation"]

1. d4 {[%clk 0:03:01.2]} 1... d5 {[%clk 0:03:00.5]} 2. Bf4 {[%clk 0:03:00.8]}
2... Nf6 {[%clk 0:03:01.6]} 3. e3 {[%clk 0:03:00.5]} 3... Nc6 {[%clk 0:03:02.3]}
4. c4 {[%clk 0:02:57.8]} 4... g6 {[%clk 0:03:03.1]} 5. Nc3 {[%clk 0:02:58.1]}
5... Bg7 {[%clk 0:03:04.2]} 6. Nf3 {[%clk 0:02:57.7]} 6... O-O {[%clk 0:03:05]}
7. Rc1 {[%clk 0:02:57.2]} 7... Bg4 {[%clk 0:03:05.3]} 8. h3 {[%clk 0:02:56.1]}
8... Bf5 {[%clk 0:03:05.1]} 9. a3 {[%clk 0:02:51.5]} 9... e6 {[%clk 0:03:00.6]}
10. Be2 {[%clk 0:02:49.2]} 10... Ne4 {[%clk 0:03:00.7]} 11. Nxe4 {[%clk
0:02:46.9]} 11... Bxe4 {[%clk 0:03:00.8]} 12. O-O {[%clk 0:02:47]} 12... f6
{[%clk 0:03:01.3]} 13. Nd2 {[%clk 0:02:45.5]} 13... g5 {[%clk 0:03:01.7]} 14.
Bh2 {[%clk 0:02:41.4]} 14... Bg6 {[%clk 0:03:01.4]} 15. cxd5 {[%clk 0:02:40.4]}
15... exd5 {[%clk 0:02:59.8]} 16. b4 {[%clk 0:02:41]} 16... Rc8 {[%clk
0:02:52.8]} 17. Nb3 {[%clk 0:02:39.8]} 17... Ne7 {[%clk 0:02:49.6]} 18. Nc5
{[%clk 0:02:37.9]} 18... Nf5 {[%clk 0:02:30.9]} 19. Nxb7 {[%clk 0:02:26]} 19...
Qe7 {[%clk 0:02:28.5]} 20. Bd3 {[%clk 0:02:17.2]} 20... a5 {[%clk 0:02:26.2]}
21. Nc5 {[%clk 0:02:13]} 21... axb4 {[%clk 0:02:26.3]} 22. axb4 {[%clk
0:02:14.9]} 22... Rfe8 {[%clk 0:02:27.2]} 23. Qc2 {[%clk 0:02:14.9]} 23... Nxe3
{[%clk 0:02:27.3]} 24. fxe3 {[%clk 0:02:14.8]} 24... Qxe3+ {[%clk 0:02:29.1]}
25. Kh1 {[%clk 0:02:15.9]} 25... Qxd4 {[%clk 0:02:26.7]} 26. Bxg6 {[%clk
0:02:15.7]} 26... hxg6 {[%clk 0:02:27.6]} 27. Qxg6 {[%clk 0:02:15.2]} 27... Qxb4
{[%clk 0:02:28]} 28. Nd7 {[%clk 0:02:14.8]} 28... Kh8 {[%clk 0:02:16.5]} 29.
Nxf6 {[%clk 0:02:10.6]} 29... Bxf6 {[%clk 0:02:16.2]} 30. Qxf6+ {[%clk
0:02:08.2]} 1-0

[Event "*** Titled Tuesday Blitz"]
[Site "Chess.com"]
[Date "2018.08.07"]
[Round "1"]
[White "Litti"]
[Black "MikeSailer"]
[Result "1-0"]
[WhiteElo "2461"]
[BlackElo "2080"]
[TimeControl "180+2"]
[EndTime "13:03:58 PDT"]
[Termination "Litti won by resignation"]

1. e4 {[%clk 0:03:01.9]} 1... d5 {[%clk 0:02:59.6]} 2. exd5 {[%clk 0:03:02.3]}
2... Qxd5 {[%clk 0:03:00.8]} 3. Nc3 {[%clk 0:03:02.9]} 3... Qd8 {[%clk
0:03:01.3]} 4. Nf3 {[%clk 0:03:03.3]} 4... Nf6 {[%clk 0:03:02.4]} 5. Bc4 {[%clk
0:03:03.5]} 5... a6 {[%clk 0:03:03.3]} 6. Ne5 {[%clk 0:03:03.2]} 6... e6 {[%clk
0:03:02.5]} 7. d4 {[%clk 0:03:00.6]} 7... Nbd7 {[%clk 0:02:59.6]} 8. Qe2 {[%clk
0:02:57]} 8... Nxe5 {[%clk 0:02:58.2]} 9. dxe5 {[%clk 0:02:58.9]} 9... Nd5
{[%clk 0:02:59.1]} 10. Bd2 {[%clk 0:02:55.5]} 10... Nxc3 {[%clk 0:02:43.9]} 11.
Bxc3 {[%clk 0:02:55.5]} 11... Bc5 {[%clk 0:02:43.8]} 12. O-O {[%clk 0:02:46.1]}
12... O-O {[%clk 0:02:44.2]} 13. Qg4 {[%clk 0:02:43]} 13... b5 {[%clk
0:02:21.8]} 14. Rad1 {[%clk 0:02:33.8]} 14... Qe8 {[%clk 0:02:04.6]} 15. Bd3
{[%clk 0:02:30.8]} 15... Bb7 {[%clk 0:01:58.4]} 16. Bd2 {[%clk 0:02:26.7]} 16...
Kh8 {[%clk 0:01:28.1]} 17. Qh4 {[%clk 0:02:16.5]} 17... g6 {[%clk 0:01:26.9]}
18. Qf6+ {[%clk 0:02:15.2]} 18... Kg8 {[%clk 0:01:27.8]} 19. Bh6 {[%clk
0:02:15.8]} 1-0

[Event "*** Titled Tuesday Blitz"]
[Site "Chess.com"]
[Date "2018.08.07"]
[Round "1"]
[White "evgenysharapov"]
[Black "Nyzhnyk_Illia"]
[Result "0-1"]
[WhiteElo "2336"]
[BlackElo "2723"]
[TimeControl "180+2"]
[EndTime "13:04:23 PDT"]
[Termination "Nyzhnyk_Illia won by resignation"]

1. e4 {[%clk 0:03:00.9]} 1... e6 {[%clk 0:02:58.8]} 2. d4 {[%clk 0:03:01.1]}
2... d5 {[%clk 0:02:59.8]} 3. Nc3 {[%clk 0:03:01.4]} 3... Nf6 {[%clk 0:03:00.5]}
4. e5 {[%clk 0:03:01.5]} 4... Nfd7 {[%clk 0:03:01.6]} 5. f4 {[%clk 0:03:02.5]}
5... c5 {[%clk 0:03:02.6]} 6. Nf3 {[%clk 0:03:03]} 6... Nc6 {[%clk 0:03:04.2]}
7. Be3 {[%clk 0:03:03.5]} 7... Be7 {[%clk 0:03:05.3]} 8. Qd2 {[%clk 0:03:03.6]}
8... a6 {[%clk 0:03:04.9]} 9. Be2 {[%clk 0:03:03.9]} 9... O-O {[%clk 0:03:05]}
10. O-O {[%clk 0:03:03.9]} 10... b5 {[%clk 0:03:06.1]} 11. Nd1 {[%clk
0:03:03.5]} 11... Qb6 {[%clk 0:03:07]} 12. c3 {[%clk 0:03:04]} 12... a5 {[%clk
0:03:07.6]} 13. Nf2 {[%clk 0:03:04.2]} 13... b4 {[%clk 0:02:59.9]} 14. Kh1
{[%clk 0:03:01]} 14... Ba6 {[%clk 0:03:00.5]} 15. Bxa6 {[%clk 0:03:00.9]} 15...
Qxa6 {[%clk 0:02:59.5]} 16. g4 {[%clk 0:02:54.7]} 16... bxc3 {[%clk 0:02:55.4]}
17. bxc3 {[%clk 0:02:55]} 17... cxd4 {[%clk 0:02:56.3]} 18. Nxd4 {[%clk
0:02:48.2]} 18... Rfc8 {[%clk 0:02:47.2]} 19. Nd3 {[%clk 0:02:42.5]} 19... Rab8
{[%clk 0:02:40.3]} 20. Rab1 {[%clk 0:02:35.4]} 20... Qc4 {[%clk 0:02:39.8]} 21.
f5 {[%clk 0:02:07.5]} 21... Rxb1 {[%clk 0:02:35]} 22. Rxb1 {[%clk 0:02:07.2]}
22... Ncxe5 {[%clk 0:02:34.4]} 23. Nxe5 {[%clk 0:02:07.5]} 23... Nxe5 {[%clk
0:02:35.2]} 24. fxe6 {[%clk 0:02:08]} 24... fxe6 {[%clk 0:02:36.2]} 25. Bg5
{[%clk 0:01:54]} 25... Bd6 {[%clk 0:02:08.8]} 26. Nxe6 {[%clk 0:01:33.9]} 26...
Qe4+ {[%clk 0:02:06.5]} 0-1

[Event "*** Titled Tuesday Blitz"]
[Site "Chess.com"]
[Date "2018.08.07"]
[Round "1"]
[White "INDIAN-ELEPHANT"]
[Black "2Tilted"]
[Result "1-0"]
[WhiteElo "2718"]
[BlackElo "2335"]
[TimeControl "180+2"]
[EndTime "13:04:53 PDT"]
[Termination "INDIAN-ELEPHANT won by resignation"]

1. d4 {[%clk 0:03:01.3]} 1... d5 {[%clk 0:02:58.3]} 2. Nf3 {[%clk 0:03:02.2]}
2... Nf6 {[%clk 0:02:58.7]} 3. c4 {[%clk 0:03:02.9]} 3... c6 {[%clk 0:02:59.7]}
4. e3 {[%clk 0:03:03.4]} 4... Bf5 {[%clk 0:02:52.2]} 5. Nc3 {[%clk 0:03:02]}
5... e6 {[%clk 0:02:53.2]} 6. Nh4 {[%clk 0:03:00.5]} 6... Bg6 {[%clk 0:02:53.8]}
7. Nxg6 {[%clk 0:03:00.8]} 7... hxg6 {[%clk 0:02:55.7]} 8. Bd3 {[%clk
0:03:01.9]} 8... Bd6 {[%clk 0:02:49.7]} 9. h3 {[%clk 0:03:02.6]} 9... Nbd7
{[%clk 0:02:48.5]} 10. O-O {[%clk 0:02:56.8]} 10... O-O {[%clk 0:02:40.1]} 11.
Qc2 {[%clk 0:02:56.8]} 11... Qe7 {[%clk 0:02:38.7]} 12. Rd1 {[%clk 0:02:55.6]}
12... dxc4 {[%clk 0:02:37.9]} 13. Bxc4 {[%clk 0:02:56.4]} 13... e5 {[%clk
0:02:39.2]} 14. Qxg6 {[%clk 0:02:55]} 14... exd4 {[%clk 0:02:31.2]} 15. exd4
{[%clk 0:02:54.5]} 15... a5 {[%clk 0:02:22.9]} 16. Bh6 {[%clk 0:02:45.3]} 16...
Nh5 {[%clk 0:02:13.7]} 17. Qxh5 {[%clk 0:02:34.7]} 17... gxh6 {[%clk 0:02:13.5]}
18. Qg6+ {[%clk 0:02:33.1]} 18... Kh8 {[%clk 0:02:13.3]} 19. Qxh6+ {[%clk
0:02:35]} 19... Kg8 {[%clk 0:02:14.7]} 20. Qg6+ {[%clk 0:02:21.1]} 20... Kh8
{[%clk 0:02:14.9]} 21. Qh5+ {[%clk 0:02:23]} 21... Kg7 {[%clk 0:02:04.2]} 22.
Re1 {[%clk 0:02:24.9]} 22... Qd8 {[%clk 0:01:58.3]} 23. Re4 {[%clk 0:02:22.1]}
23... f5 {[%clk 0:01:48.1]} 24. Rh4 {[%clk 0:02:17.1]} 1-0

[Event "*** Titled Tuesday Blitz"]
[Site "Chess.com"]
[Date "2018.08.07"]
[Round "1"]
[White "PulpanJ"]
[Black "Titus369"]
[Result "1/2-1/2"]
[WhiteElo "2529"]
[BlackElo "2248"]
[TimeControl "180+2"]
[EndTime "13:04:59 PDT"]
[Termination "Game drawn by agreement"]

1. e4 {[%clk 0:02:55.4]} 1... c5 {[%clk 0:03:00.5]} 2. Nf3 {[%clk 0:02:52.2]}
2... d6 {[%clk 0:03:01.7]} 3. d4 {[%clk 0:02:50.8]} 3... cxd4 {[%clk 0:03:03.6]}
4. Nxd4 {[%clk 0:02:50.5]} 4... Nf6 {[%clk 0:03:04.3]} 5. Nc3 {[%clk 0:02:46.6]}
5... a6 {[%clk 0:03:04.5]} 6. Be2 {[%clk 0:02:47.9]} 6... e6 {[%clk 0:03:04.8]}
7. Be3 {[%clk 0:02:47.4]} 7... Nbd7 {[%clk 0:02:59.7]} 8. f3 {[%clk 0:02:44.9]}
8... b5 {[%clk 0:02:59.8]} 9. Qd2 {[%clk 0:02:43.6]} 9... Bb7 {[%clk 0:03:00.1]}
10. a3 {[%clk 0:02:41]} 10... Qc7 {[%clk 0:03:00.7]} 11. O-O-O {[%clk
0:02:41.6]} 11... Ne5 {[%clk 0:02:57.6]} 12. Ndxb5 {[%clk 0:02:39]} 12... axb5
{[%clk 0:02:53.8]} 13. Nxb5 {[%clk 0:02:40.9]} 13... Qc6 {[%clk 0:02:11]} 14.
Nxd6+ {[%clk 0:02:39.5]} 14... Bxd6 {[%clk 0:02:12]} 15. Qxd6 {[%clk 0:02:41.4]}
15... Qxd6 {[%clk 0:02:13.9]} 16. Rxd6 {[%clk 0:02:39]} 16... O-O {[%clk
0:02:14]} 17. Bd4 {[%clk 0:02:36.1]} 17... Nc6 {[%clk 0:01:41.9]} 18. Bxf6
{[%clk 0:02:27.3]} 18... gxf6 {[%clk 0:01:42.3]} 19. Rhd1 {[%clk 0:02:29.2]}
19... Kg7 {[%clk 0:01:26.6]} 20. Rd7 {[%clk 0:02:21.3]} 20... Rab8 {[%clk
0:01:17.3]} 21. b4 {[%clk 0:02:19.2]} 21... e5 {[%clk 0:01:17]} 22. c3 {[%clk
0:02:17.4]} 22... Rfc8 {[%clk 0:01:10.6]} 23. Kb2 {[%clk 0:02:13.1]} 23... Na5
{[%clk 0:00:57.4]} 24. bxa5 {[%clk 0:02:01.7]} 24... Ba6+ {[%clk 0:00:58.3]}
1/2-1/2

[Event "*** Titled Tuesday Blitz"]
[Site "Chess.com"]
[Date "2018.08.07"]
[Round "1"]
[White "TBergh98"]
[Black "Tjktiger"]
[Result "0-1"]
[WhiteElo "2021"]
[BlackElo "2461"]
[TimeControl "180+2"]
[EndTime "13:05:02 PDT"]
[Termination "Tjktiger won by resignation"]

1. d4 {[%clk 0:03:00.9]} 1... Nf6 {[%clk 0:03:00.5]} 2. c4 {[%clk 0:02:58.9]}
2... g6 {[%clk 0:03:01.5]} 3. Nc3 {[%clk 0:02:59.1]} 3... Bg7 {[%clk 0:03:02.5]}
4. e4 {[%clk 0:02:59.6]} 4... d6 {[%clk 0:03:04]} 5. Nf3 {[%clk 0:02:59.5]} 5...
O-O {[%clk 0:03:05.4]} 6. Be2 {[%clk 0:03:00.3]} 6... c5 {[%clk 0:03:06.5]} 7.
O-O {[%clk 0:02:55.6]} 7... cxd4 {[%clk 0:03:07.3]} 8. Nxd4 {[%clk 0:02:55.4]}
8... Nc6 {[%clk 0:03:09.2]} 9. Be3 {[%clk 0:02:54.6]} 9... Bd7 {[%clk
0:03:10.4]} 10. Rc1 {[%clk 0:02:53.8]} 10... Nxd4 {[%clk 0:03:11.3]} 11. Bxd4
{[%clk 0:02:54.1]} 11... Bc6 {[%clk 0:03:13.2]} 12. f3 {[%clk 0:02:54.7]} 12...
a5 {[%clk 0:03:14.4]} 13. b3 {[%clk 0:02:54.6]} 13... Nd7 {[%clk 0:03:15.3]} 14.
Bxg7 {[%clk 0:02:53.1]} 14... Kxg7 {[%clk 0:03:17.2]} 15. Qd4+ {[%clk
0:02:53.8]} 15... Kg8 {[%clk 0:03:18.1]} 16. Nd5 {[%clk 0:02:54.5]} 16... e6
{[%clk 0:03:18]} 17. Ne3 {[%clk 0:02:52]} 17... Qb6 {[%clk 0:03:15.4]} 18. Qxb6
{[%clk 0:02:52.1]} 18... Nxb6 {[%clk 0:03:17.3]} 19. Rfd1 {[%clk 0:02:53.3]}
19... Rfd8 {[%clk 0:03:18.4]} 20. Rd2 {[%clk 0:02:43.9]} 20... Kf8 {[%clk
0:03:19.4]} 21. Rcd1 {[%clk 0:02:44.7]} 21... Ke7 {[%clk 0:03:20.6]} 22. a3
{[%clk 0:02:40.8]} 22... f5 {[%clk 0:03:20.4]} 23. Bd3 {[%clk 0:02:37.9]} 23...
Nd7 {[%clk 0:03:17.9]} 24. Bc2 {[%clk 0:02:31.8]} 24... f4 {[%clk 0:03:11.1]}
25. Ng4 {[%clk 0:02:24.6]} 25... h5 {[%clk 0:03:06.2]} 26. Nf2 {[%clk
0:02:18.9]} 26... Ne5 {[%clk 0:03:04.8]} 27. Nh3 {[%clk 0:02:14.6]} 27... a4
{[%clk 0:03:03.4]} 28. Nxf4 {[%clk 0:02:13.9]} 28... axb3 {[%clk 0:03:04.4]} 29.
Bxb3 {[%clk 0:02:15.8]} 29... Rxa3 {[%clk 0:03:05.5]} 30. Rb1 {[%clk 0:02:06.9]}
30... Rda8 {[%clk 0:02:58.6]} 31. c5 {[%clk 0:02:02.8]} 31... dxc5 {[%clk
0:02:53.3]} 32. Nxe6 {[%clk 0:02:03.6]} 32... Rxb3 {[%clk 0:02:51.9]} 33. Rxb3
{[%clk 0:02:03.5]} 33... Kxe6 {[%clk 0:02:53.2]} 34. f4 {[%clk 0:02:04.2]} 34...
Ra1+ {[%clk 0:02:45.7]} 35. Kf2 {[%clk 0:02:03.8]} 35... Ng4+ {[%clk 0:02:47.2]}
36. Kg3 {[%clk 0:01:58.2]} 36... Bxe4 {[%clk 0:02:43.7]} 37. Re2 {[%clk
0:01:59.1]} 37... Kf5 {[%clk 0:02:37.5]} 38. Rb5 {[%clk 0:01:47.1]} 38... Rc1
{[%clk 0:02:33.7]} 39. Ra5 {[%clk 0:01:48.1]} 39... Rc3+ {[%clk 0:02:31.4]} 40.
Kh4 {[%clk 0:01:46.3]} 40... Ne3 {[%clk 0:02:31.9]} 41. g3 {[%clk 0:01:43.9]}
41... Ng2+ {[%clk 0:02:31.5]} 42. Kh3 {[%clk 0:01:43.9]} 42... Nxf4+ {[%clk
0:02:32.9]} 0-1

[Event "*** Titled Tuesday Blitz"]
[Site "Chess.com"]
[Date "2018.08.07"]
[Round "1"]
[White "Zaven_ChessMood"]
[Black "Kangoroo3000"]
[Result "1-0"]
[WhiteElo "2895"]
[BlackElo "2408"]
[TimeControl "180+2"]
[EndTime "13:05:04 PDT"]
[Termination "Zaven_ChessMood won by resignation"]

1. e4 {[%clk 0:03:01.9]} 1... e6 {[%clk 0:03:00.8]} 2. d3 {[%clk 0:03:02.6]}
2... d6 {[%clk 0:03:02.1]} 3. Nd2 {[%clk 0:03:04.2]} 3... Nf6 {[%clk 0:03:02]}
4. f4 {[%clk 0:03:04.3]} 4... c5 {[%clk 0:03:01.9]} 5. Ngf3 {[%clk 0:03:05.7]}
5... Nc6 {[%clk 0:03:02.1]} 6. g3 {[%clk 0:03:06.8]} 6... Rb8 {[%clk 0:02:59.1]}
7. Bg2 {[%clk 0:03:08.2]} 7... Be7 {[%clk 0:03:00.3]} 8. O-O {[%clk 0:03:09.8]}
8... b5 {[%clk 0:03:01.3]} 9. h3 {[%clk 0:03:10.9]} 9... a6 {[%clk 0:03:00.9]}
10. g4 {[%clk 0:03:11.9]} 10... Bb7 {[%clk 0:02:58.3]} 11. a4 {[%clk 0:03:12.7]}
11... Nd7 {[%clk 0:02:53.1]} 12. axb5 {[%clk 0:03:12.6]} 12... axb5 {[%clk
0:02:55]} 13. g5 {[%clk 0:03:11]} 13... Qb6 {[%clk 0:02:55.5]} 14. Kh2 {[%clk
0:03:08.4]} 14... Nd4 {[%clk 0:02:47.8]} 15. Nxd4 {[%clk 0:03:08.8]} 15... cxd4
{[%clk 0:02:49.7]} 16. Nf3 {[%clk 0:03:10.6]} 16... e5 {[%clk 0:02:49.7]} 17. f5
{[%clk 0:03:11.2]} 17... Qc5 {[%clk 0:02:33.4]} 18. Bd2 {[%clk 0:03:11]} 18...
Rc8 {[%clk 0:02:33]} 19. c3 {[%clk 0:03:11.4]} 19... dxc3 {[%clk 0:02:32.2]} 20.
bxc3 {[%clk 0:03:13]} 20... d5 {[%clk 0:02:24.2]} 21. Qe1 {[%clk 0:03:12.4]}
21... dxe4 {[%clk 0:02:16]} 22. dxe4 {[%clk 0:03:13.5]} 22... Qc4 {[%clk
0:02:17.1]} 23. Ra7 {[%clk 0:03:14.4]} 23... Rc7 {[%clk 0:02:07.7]} 24. f6
{[%clk 0:03:06.3]} 24... gxf6 {[%clk 0:02:05.2]} 25. gxf6 {[%clk 0:03:07.3]}
25... Bc5 {[%clk 0:01:55.4]} 26. Ra1 {[%clk 0:03:07.7]} 26... Rg8 {[%clk
0:01:33.4]} 27. Nh4 {[%clk 0:03:02.2]} 27... Qd3 {[%clk 0:01:05.4]} 28. Rf3
{[%clk 0:02:49.8]} 28... Qxe4 {[%clk 0:00:58.7]} 29. Rg3 {[%clk 0:02:50.5]}
29... Rxg3 {[%clk 0:00:40]} 30. Bxe4 {[%clk 0:02:47.9]} 1-0

[Event "*** Titled Tuesday Blitz"]
[Site "Chess.com"]
[Date "2018.08.07"]
[Round "1"]
[White "JoakimVonAnd"]
[Black "Firouzja2003"]
[Result "0-1"]
[WhiteElo "2404"]
[BlackElo "2840"]
[TimeControl "180+2"]
[EndTime "13:05:24 PDT"]
[Termination "Firouzja2003 won by resignation"]

1. d4 {[%clk 0:03:01.9]} 1... Nf6 {[%clk 0:02:57.8]} 2. c4 {[%clk 0:03:02.6]}
2... g6 {[%clk 0:02:58.9]} 3. Nc3 {[%clk 0:03:03.6]} 3... Bg7 {[%clk 0:02:59.9]}
4. e4 {[%clk 0:03:05]} 4... d6 {[%clk 0:03:01.3]} 5. Be2 {[%clk 0:03:06.2]} 5...
O-O {[%clk 0:03:02.6]} 6. Be3 {[%clk 0:03:07.4]} 6... c5 {[%clk 0:02:58.3]} 7.
d5 {[%clk 0:03:07.9]} 7... e6 {[%clk 0:02:59.3]} 8. Nf3 {[%clk 0:03:08.8]} 8...
exd5 {[%clk 0:03:00.5]} 9. cxd5 {[%clk 0:03:10]} 9... Bg4 {[%clk 0:02:59.7]} 10.
Nd2 {[%clk 0:03:11]} 10... Bxe2 {[%clk 0:03:00.4]} 11. Qxe2 {[%clk 0:03:12.9]}
11... Nbd7 {[%clk 0:03:01.9]} 12. O-O {[%clk 0:03:13.7]} 12... Re8 {[%clk
0:03:02.9]} 13. f3 {[%clk 0:03:13.1]} 13... a6 {[%clk 0:03:02.8]} 14. a4 {[%clk
0:03:13.5]} 14... Rb8 {[%clk 0:03:03]} 15. Nc4 {[%clk 0:03:12.3]} 15... Qc7
{[%clk 0:02:57.5]} 16. a5 {[%clk 0:03:13.2]} 16... Ne5 {[%clk 0:02:42.5]} 17.
Nxe5 {[%clk 0:03:05.3]} 17... Rxe5 {[%clk 0:02:44.4]} 18. Bf4 {[%clk 0:03:05.7]}
18... Ree8 {[%clk 0:02:42.5]} 19. Qc4 {[%clk 0:03:02.7]} 19... Nd7 {[%clk
0:02:41.7]} 20. Rfe1 {[%clk 0:02:57.7]} 20... Ne5 {[%clk 0:02:42.3]} 21. Qa4
{[%clk 0:02:56.4]} 21... b5 {[%clk 0:02:40]} 22. axb6 {[%clk 0:02:57.1]} 22...
Qxb6 {[%clk 0:02:41.3]} 23. Re2 {[%clk 0:02:49]} 23... Nd3 {[%clk 0:02:39.7]}
24. Bd2 {[%clk 0:02:37.9]} 24... Qxb2 {[%clk 0:02:10.8]} 25. Ra2 {[%clk
0:02:26.7]} 25... Qb4 {[%clk 0:02:01.3]} 26. Qxa6 {[%clk 0:02:21.2]} 26... c4
{[%clk 0:01:48.7]} 27. Qa3 {[%clk 0:02:04.8]} 27... Qxa3 {[%clk 0:01:40.3]} 28.
Rxa3 {[%clk 0:02:04.3]} 28... Bxc3 {[%clk 0:01:37.7]} 29. Rxc3 {[%clk
0:02:00.2]} 29... Rb1+ {[%clk 0:01:20]} 30. Bc1 {[%clk 0:01:58.6]} 30... Nxc1
{[%clk 0:01:18.6]} 31. Re1 {[%clk 0:01:47.8]} 31... Ne2+ {[%clk 0:01:19.1]} 32.
Kf2 {[%clk 0:01:47.9]} 32... Nxc3 {[%clk 0:01:20.4]} 0-1

[Event "*** Titled Tuesday Blitz"]
[Site "Chess.com"]
[Date "2018.08.07"]
[Round "1"]
[White "GMG"]
[Black "TijanaBlagojevic"]
[Result "1-0"]
[WhiteElo "2751"]
[BlackElo "2355"]
[TimeControl "180+2"]
[EndTime "13:05:31 PDT"]
[Termination "GMG won by resignation"]

1. d4 {[%clk 0:03:01.9]} 1... d5 {[%clk 0:02:57.8]} 2. Bf4 {[%clk 0:03:00.5]}
2... Nf6 {[%clk 0:02:56.8]} 3. e3 {[%clk 0:03:01.9]} 3... c5 {[%clk 0:02:57.3]}
4. c3 {[%clk 0:03:03]} 4... Nc6 {[%clk 0:02:57.3]} 5. Nd2 {[%clk 0:03:04.4]}
5... Qb6 {[%clk 0:02:43.9]} 6. Qb3 {[%clk 0:02:59.9]} 6... c4 {[%clk 0:02:27.6]}
7. Qc2 {[%clk 0:02:59.3]} 7... Bg4 {[%clk 0:02:24.7]} 8. e4 {[%clk 0:02:57.3]}
8... e6 {[%clk 0:02:22.5]} 9. Be2 {[%clk 0:02:29.8]} 9... Bxe2 {[%clk 0:02:20]}
10. Nxe2 {[%clk 0:02:31.7]} 10... Be7 {[%clk 0:02:19.6]} 11. O-O {[%clk
0:02:31.7]} 11... O-O {[%clk 0:02:20.2]} 12. e5 {[%clk 0:02:30.5]} 12... Nd7
{[%clk 0:02:14.9]} 13. Be3 {[%clk 0:02:23.3]} 13... Qd8 {[%clk 0:01:31.6]} 14.
f4 {[%clk 0:02:23.3]} 14... f5 {[%clk 0:01:32.6]} 15. g4 {[%clk 0:02:17.3]}
15... b5 {[%clk 0:01:34.3]} 16. gxf5 {[%clk 0:02:13.8]} 16... Rxf5 {[%clk
0:01:29.8]} 17. Ng3 {[%clk 0:02:14.3]} 17... Rf8 {[%clk 0:01:28.7]} 18. f5
{[%clk 0:02:15.4]} 18... exf5 {[%clk 0:01:18.4]} 19. Nxf5 {[%clk 0:02:06.6]}
19... Bg5 {[%clk 0:01:19.2]} 20. Rae1 {[%clk 0:02:05.7]} 20... b4 {[%clk
0:01:15.7]} 21. Nf3 {[%clk 0:01:58.1]} 21... Bxe3+ {[%clk 0:01:15.4]} 22. Rxe3
{[%clk 0:02:00]} 22... Qe8 {[%clk 0:01:10.3]} 23. Ng5 {[%clk 0:01:52.5]} 23...
Qg6 {[%clk 0:01:10.4]} 24. Rg3 {[%clk 0:01:53.8]} 24... b3 {[%clk 0:01:04.2]}
25. axb3 {[%clk 0:01:53.2]} 25... cxb3 {[%clk 0:01:06.1]} 26. Qxb3 {[%clk
0:01:47.3]} 26... Rxf5 {[%clk 0:01:00.7]} 27. Qxd5+ {[%clk 0:01:47.3]} 27... Kh8
{[%clk 0:00:59.7]} 28. Rxf5 {[%clk 0:01:45.3]} 28... Qxf5 {[%clk 0:00:58.4]} 29.
Nf7+ {[%clk 0:01:46.1]} 1-0

[Event "*** Titled Tuesday Blitz"]
[Site "Chess.com"]
[Date "2018.08.07"]
[Round "1"]
[White "nihalsarin"]
[Black "Kislov_Oleg"]
[Result "1-0"]
[WhiteElo "2775"]
[BlackElo "2380"]
[TimeControl "180+2"]
[EndTime "13:06:16 PDT"]
[Termination "nihalsarin won by resignation"]

1. d4 {[%clk 0:03:00.4]} 1... d5 {[%clk 0:02:59.2]} 2. c4 {[%clk 0:03:00.9]}
2... dxc4 {[%clk 0:03:00.1]} 3. e3 {[%clk 0:03:01.5]} 3... Nf6 {[%clk
0:03:00.3]} 4. Bxc4 {[%clk 0:03:02.8]} 4... e6 {[%clk 0:03:01.7]} 5. Nf3 {[%clk
0:03:04.2]} 5... c5 {[%clk 0:03:02.7]} 6. Qe2 {[%clk 0:03:04.9]} 6... a6 {[%clk
0:03:03.8]} 7. dxc5 {[%clk 0:03:05.4]} 7... Bxc5 {[%clk 0:03:03.8]} 8. O-O
{[%clk 0:03:06.7]} 8... O-O {[%clk 0:03:04.7]} 9. e4 {[%clk 0:03:06.5]} 9... Nc6
{[%clk 0:03:03.9]} 10. e5 {[%clk 0:03:06.8]} 10... Nd7 {[%clk 0:03:00]} 11. Nc3
{[%clk 0:03:07]} 11... Nd4 {[%clk 0:02:59.3]} 12. Nxd4 {[%clk 0:03:03.2]} 12...
Bxd4 {[%clk 0:03:00]} 13. Rd1 {[%clk 0:03:00.2]} 13... Nxe5 {[%clk 0:02:33.9]}
14. Be3 {[%clk 0:02:42.9]} 14... Nc6 {[%clk 0:02:32.6]} 15. Bxd4 {[%clk
0:02:42.4]} 15... Nxd4 {[%clk 0:02:33.1]} 16. Qe5 {[%clk 0:02:36.4]} 16... Nc6
{[%clk 0:02:31.6]} 17. Qe3 {[%clk 0:02:28.4]} 17... Qe7 {[%clk 0:02:28.9]} 18.
Ne4 {[%clk 0:02:28.6]} 18... Rd8 {[%clk 0:02:27.5]} 19. h3 {[%clk 0:02:26.3]}
19... b5 {[%clk 0:02:06.7]} 20. Be2 {[%clk 0:02:25.3]} 20... Bb7 {[%clk
0:02:06.8]} 21. Qb6 {[%clk 0:02:24.8]} 21... Rab8 {[%clk 0:01:45.4]} 22. Nc5
{[%clk 0:02:20.2]} 22... Ba8 {[%clk 0:01:41.4]} 23. Rxd8+ {[%clk 0:02:15]} 23...
Qxd8 {[%clk 0:01:36.7]} 24. Qxd8+ {[%clk 0:02:09.7]} 24... Rxd8 {[%clk
0:01:37.1]} 25. Nxa6 {[%clk 0:02:11.6]} 25... Nd4 {[%clk 0:01:36.2]} 26. Bf1
{[%clk 0:02:11.5]} 26... e5 {[%clk 0:01:24.7]} 27. Nc7 {[%clk 0:02:07.7]} 27...
Bc6 {[%clk 0:01:24.4]} 28. Rc1 {[%clk 0:02:09.2]} 28... Rd7 {[%clk 0:01:22.2]}
29. Nxb5 {[%clk 0:02:06]} 29... Bb7 {[%clk 0:01:01.6]} 30. Nxd4 {[%clk
0:02:03.2]} 30... exd4 {[%clk 0:01:02.6]} 31. Bd3 {[%clk 0:02:03.8]} 31... g6
{[%clk 0:01:02.9]} 32. a4 {[%clk 0:02:04.7]} 32... Rd5 {[%clk 0:00:59.4]} 33. b4
{[%clk 0:02:01.9]} 33... Rd6 {[%clk 0:00:58.4]} 34. a5 {[%clk 0:02:01]} 34...
Ba6 {[%clk 0:00:45.9]} 35. b5 {[%clk 0:02:01.4]} 35... Bxb5 {[%clk 0:00:46.9]}
36. Bxb5 {[%clk 0:02:02.1]} 36... Rd5 {[%clk 0:00:48.2]} 37. a6 {[%clk
0:01:59.5]} 1-0